bitfinex/quotes_ETHUSD_20240713
["timestamp","ask_amount","ask_price","bid_price","bid_amount"]
[1720872142642,0.33077985,3164.2,3164.0,2.21238]
[1720872142643,1.09486694,3164.1,3164.0,2.21238]
[1720872142882,1.09486694,3164.1,3164.0,4.9353077]
[1720872143299,0.33079624,3164.9,3164.4,2.2121]
[1720872143508,1.09470308,3164.8,3164.4,2.2121]
[1720872143676,1.09470308,3164.7,3164.4,4.5934]
[1720872143877,0.04966366,3164.8,3164.7,4.4238]
[1720872144093,3.50455981,3165.8,3165.0,2.21166]
[1720872144276,1.09455072,3165.7,3165.0,2.21166]
[1720872144463,1.09455072,3165.6,3165.0,2.21166]
[1720872144665,1.09455072,3165.5,3165.0,2.21166]
[1720872144903,1.09457108,3165.4,3165.0,2.21166]
[1720872145075,1.09457108,3165.4,3164.8,6.17618]
[1720872145076,1.09457108,3165.3,3164.9,2.21175]
[1720872145406,0.04803508,3165.2,3164.9,2.21175]
[1720872145696,1.09457108,3165.1,3164.9,2.21175]
[1720872146061,0.04831313,3165.0,3164.9,2.21175]
[1720872146302,1.14288421,3165.0,3164.9,2.21175]
[1720872146606,1.09457108,3165.0,3164.9,2.21175]
[1720872146971,1.14288398,3165.0,3164.9,2.21175]
[1720872147369,0.0483129,3165.0,3164.9,2.21175]
[1720872147578,2.21128,3165.6,3164.9,2.654114]
[1720872147908,1.14293126,3165.5,3164.9,2.654114]
[1720872148105,1.09454918,3165.4,3164.9,2.654114]
[1720872148307,0.04838208,3165.5,3164.9,2.654114]
[1720872148517,1.14275075,3165.3,3164.8,2.21181]
[1720872148676,1.09456227,3165.2,3164.8,2.21181]
[1720872148996,0.04812497,3165.1,3164.8,2.21181]
[1720872149193,1.09456227,3165.0,3164.8,2.21181]
[1720872149401,0.04646258,3164.9,3164.8,2.21181]
[1720872150074,2.21128,3165.6,3164.8,2.21181]
[1720872150268,1.31573452,3165.5,3164.8,2.21181]
[1720872150506,1.09460652,3165.4,3164.8,2.21181]
[1720872150673,1.09460652,3165.3,3164.8,2.21181]
[1720872150866,2.4345,3165.2,3164.5,2.21199]
[1720872151070,2.4345,3165.2,3164.5,5.21199]
[1720872151071,1.09460652,3165.1,3164.5,5.21199]
[1720872152173,1.09460652,3165.1,3164.6,2.21194]
[1720872152776,1.09460652,3165.1,3164.8,2.21181]
[1720872152979,0.04617669,3165.0,3164.8,2.21181]
[1720872153178,1.09460652,3165.3,3164.8,2.21181]
[1720872153486,1.14082301,3165.2,3164.8,2.21181]
[1720872153686,1.14082301,3165.2,3164.7,2.21188]
[1720872153687,0.04621649,3165.2,3164.9,2.21174]
[1720872154004,4.64584,3165.5,3164.9,2.21174]
[1720872154207,1.09454019,3165.4,3164.9,2.21174]
[1720872154509,1.09454019,3165.3,3164.9,2.21174]
[1720872154709,1.09454019,3165.2,3164.9,2.21174]
[1720872154909,1.14079781,3165.2,3164.9,2.21174]
[1720872155209,0.04625762,3165.2,3164.9,2.21174]
[1720872155781,5.331554,3165.5,3164.9,2.21174]
[1720872156116,1.67398491,3165.4,3165.0,2.21168]
[1720872156331,1.09454423,3165.3,3165.1,2.2116]
[1720872156477,0.04628528,3165.4,3165.1,2.2116]
[1720872156682,0.04628691,3165.2,3165.1,2.2116]
[1720872156991,2.4345,3165.8,3165.1,2.2116]
[1720872157174,1.14079274,3165.7,3165.1,2.2116]
[1720872157376,1.09443666,3165.6,3165.1,2.2116]
[1720872157589,0.04632842,3165.5,3165.1,2.2116]
[1720872158007,1.09446833,3165.4,3165.1,2.2116]
[1720872158198,1.14076908,3165.3,3165.1,2.2116]
[1720872158382,0.04630075,3165.3,3165.1,2.2116]
[1720872158582,0.57863527,3165.7,3165.1,2.2116]
[1720872158784,1.66332742,3165.6,3165.1,2.2116]
[1720872159101,1.09454162,3165.5,3165.1,2.2116]
[1720872159332,1.09454162,3165.4,3165.1,2.2116]
[1720872159493,0.04633161,3165.4,3165.1,2.2116]
[1720872159703,0.04633161,3165.4,3164.8,3.96435]
[1720872159704,2.4345,3165.3,3164.8,6.17616]
[1720872159996,1.14090372,3165.2,3164.8,6.17616]
[1720872160200,0.04630548,3165.2,3164.8,6.17616]
[1720872160399,1.09459435,3165.1,3164.8,6.17616]
[1720872160622,0.04629638,3165.0,3164.8,6.17616]
[1720872160992,2.68258316,3165.3,3164.8,2.21181]
[1720872161195,1.36285261,3165.2,3164.8,2.21181]
[1720872161423,1.14089986,3165.1,3164.8,2.21181]
[1720872161825,1.09460381,3165.0,3164.8,2.21181]
[1720872162012,0.04630557,3165.1,3164.8,2.21181]
[1720872162324,1.09460629,3165.0,3164.8,2.21181]
[1720872162692,0.0462779,3164.9,3164.8,2.21181]
[1720872163029,0.26825832,3165.2,3164.5,2.21201]
[1720872163247,0.04626242,3164.9,3164.5,4.424]
[1720872163555,0.29508415,3165.1,3164.5,4.424]
[1720872163733,1.09463516,3165.0,3164.5,4.424]
[1720872163918,1.09463516,3164.9,3164.5,4.424]
[1720872164125,0.29508415,3165.1,3164.6,2.21195]
[1720872164439,1.09461475,3165.0,3164.6,2.21195]
[1720872164648,1.09461475,3164.9,3164.6,2.21195]
[1720872164959,1.09461475,3164.8,3164.6,2.21195]
[1720872165123,0.29508415,3165.1,3164.6,2.21195]
[1720872165324,1.09463149,3165.0,3164.6,2.21195]
[1720872165541,1.09463149,3164.9,3164.6,2.21195]
[1720872165742,1.09463149,3164.8,3164.6,2.21195]
[1720872165912,0.29508415,3165.1,3164.6,2.21195]
[1720872166115,1.09463314,3165.0,3164.6,2.21195]
[1720872166313,1.09463314,3164.9,3164.4,2.21206]
[1720872166627,0.16579756,3165.0,3164.4,2.21206]
[1720872166628,1.09463314,3164.8,3164.5,2.21202]
[1720872166865,1.09463314,3164.9,3164.5,4.42401]
[1720872167060,1.09463658,3164.8,3164.5,4.42401]
[1720872167234,0.16579756,3165.0,3164.5,4.42401]
[1720872167563,1.09463587,3164.9,3164.5,4.42401]
[1720872167852,1.09463587,3164.8,3164.5,4.42401]
[1720872168051,1.09463587,3164.9,3164.4,3.0]
[1720872168279,1.09463587,3164.9,3164.5,2.21198]
[1720872168711,0.16579756,3165.0,3164.5,2.21198]
[1720872168982,1.09463669,3164.9,3164.5,2.21198]
[1720872169187,0.16579756,3165.0,3164.5,2.21198]
[1720872169344,1.094652,3164.9,3164.5,2.21198]
[1720872169544,1.094652,3164.8,3164.5,2.21198]
[1720872169870,1.094652,3164.7,3164.3,6.17647]
[1720872170189,1.094652,3164.6,3164.3,3.96435]
[1720872170383,1.4475672,3164.6,3164.3,3.96435]
[1720872170685,1.094652,3164.5,3164.3,6.17652]
[1720872170846,1.094652,3164.9,3164.3,6.17652]
[1720872171041,1.09463109,3164.8,3164.3,2.21217]
[1720872171244,1.09463109,3164.7,3164.3,2.21217]
[1720872171984,2.21141,3165.4,3164.5,2.21198]
[1720872172185,2.21141,3165.4,3164.2,3.0]
[1720872172186,3.30608665,3165.3,3164.6,2.21195]
[1720872172346,0.04629834,3165.2,3164.6,2.21195]
[1720872172539,1.14090499,3165.2,3164.6,4.63725]
[1720872172774,1.09460665,3165.1,3164.6,4.63725]
[1720872172951,1.09460665,3165.0,3164.6,4.63725]
[1720872173154,1.09460665,3164.9,3164.6,4.63725]
[1720872173368,1.09460665,3164.8,3164.6,4.63725]
[1720872173539,1.09460665,3164.7,3164.6,4.63725]
[1720872174791,1.09460665,3164.7,3164.6,2.21195]
[1720872175363,2.3329,3165.1,3164.3,2.4253]
[1720872175700,1.54910427,3165.0,3164.2,5.21221]
[1720872175976,3.30641727,3164.9,3164.3,2.21217]
[1720872176280,1.1408786,3164.8,3164.2,3.0]
[1720872176477,1.09465727,3164.7,3164.2,3.0]
[1720872176779,1.09465727,3164.7,3164.2,5.2122]
[1720872177084,1.09465727,3164.6,3164.2,5.2122]
[1720872177288,1.09465727,3164.8,3164.2,2.2122]
[1720872177458,0.04617981,3164.5,3164.2,2.2122]
[1720872177643,1.09465727,3164.4,3164.2,2.2122]
[1720872177981,1.14082324,3164.4,3164.2,4.42438]
[1720872178202,0.04616597,3164.4,3164.3,2.21217]
[1720872178497,2.21176,3164.9,3164.3,2.21217]
[1720872178498,1.09475059,3164.8,3164.3,2.21217]
[1720872178705,0.454447,3165.0,3164.3,2.21217]
[1720872178847,1.14092916,3164.7,3164.3,2.21217]
[1720872179042,1.09472167,3164.6,3164.3,2.954605]
[1720872179283,1.09472167,3164.5,3164.3,2.954605]
[1720872179493,1.09472167,3164.4,3164.3,2.954605]
[1720872179790,1.14088764,3164.4,3164.3,2.954605]
[1720872180082,1.09472167,3164.4,3164.3,2.954605]
[1720872180293,1.09472167,3164.4,3164.3,7.592075]
[1720872181092,2.21158,3165.2,3164.6,2.21194]
[1720872181272,2.3329,3165.0,3164.4,2.21209]
[1720872181647,1.09470559,3164.9,3164.5,2.21199]
[1720872181843,2.3329,3165.0,3164.6,2.21196]
[1720872182065,1.09467958,3164.9,3164.6,2.21196]
[1720872182389,1.09467958,3164.8,3164.6,2.21196]
[1720872182551,1.09467958,3164.8,3164.7,7.070296]
[1720872182756,1.09461698,3164.8,3164.7,2.2119]
[1720872184910,1.09460823,3164.8,3164.7,2.2119]
[1720872187995,2.21141,3165.4,3164.7,2.2119]
[1720872188203,1.09457256,3164.8,3164.7,2.21184]
[1720872188356,1.09457256,3165.3,3164.7,4.42367]
[1720872188562,1.14089402,3165.2,3164.7,4.42366]
[1720872188756,1.09457256,3165.1,3164.7,4.42366]
[1720872188972,1.14086635,3165.0,3164.8,2.21182]
[1720872189157,1.09457256,3164.9,3164.8,2.21182]
[1720872189369,1.14085252,3164.9,3164.8,2.21182]
[1720872191601,1.14083741,3164.9,3164.8,2.21182]
[1720872192856,1.14083741,3164.9,3164.7,2.21183]
[1720872193062,1.09455745,3164.8,3164.7,2.21183]
[1720872193303,1.09455745,3164.8,3164.4,2.21204]
[1720872193621,0.04628479,3164.7,3164.4,2.21204]
[1720872193834,1.09455745,3164.6,3164.4,2.21204]
[1720872194152,1.09455745,3164.5,3164.4,2.21204]
[1720872194354,1.09455745,3164.9,3164.4,2.21204]
[1720872194521,1.14079599,3164.5,3164.4,2.21204]
[1720872195024,1.14093093,3164.5,3164.4,2.21204]
[1720872195223,0.04623854,3164.5,3164.4,2.21204]
[1720872195413,2.654017,3165.0,3164.4,2.21204]
[1720872195613,1.40638491,3164.9,3164.4,2.21204]
[1720872195922,1.09468931,3164.8,3164.4,2.21204]
[1720872196106,1.09468931,3164.7,3164.4,2.21204]
[1720872196307,1.09468931,3164.6,3164.4,2.21204]
[1720872196548,1.09468931,3164.5,3164.4,2.21204]
[1720872196723,1.14092785,3164.5,3164.4,2.21204]
[1720872198236,1.14091467,3164.5,3164.4,2.21204]
[1720872201627,0.04623854,3164.5,3164.4,2.21204]
[1720872201833,1.0947101,3164.5,3164.4,2.21204]
[1720872202137,1.14094864,3164.5,3164.4,2.21204]
[1720872203127,1.14094864,3164.5,3164.2,2.2122]
[1720872203442,1.0947101,3164.4,3164.2,2.2122]
[1720872203760,0.04621086,3164.3,3163.8,8.43942]
[1720872203969,1.0947101,3164.2,3163.8,6.17687]
[1720872204262,0.3609221,3164.1,3163.8,3.96435]
[1720872204468,1.0947101,3164.0,3163.8,3.96435]
[1720872205154,1.09497207,3163.9,3163.8,3.96435]
[1720872205715,1.09491407,3163.9,3163.8,3.96435]
[1720872208576,1.09492294,3163.9,3163.8,3.96435]
[1720872209860,1.09492294,3163.9,3163.7,2.21258]
[1720872210034,1.09492294,3163.8,3163.5,2.21269]
[1720872210236,1.09492294,3164.1,3163.6,2.21266]
[1720872210575,0.33071929,3164.0,3163.6,2.21266]
[1720872210893,1.09492294,3163.9,3163.6,2.21266]
[1720872211037,1.09492294,3164.1,3163.6,2.21266]
[1720872211996,1.09496965,3164.0,3163.6,2.21266]
[1720872212205,1.09496965,3163.9,3163.6,2.21266]
[1720872212589,1.09496965,3163.8,3163.6,2.21266]
[1720872212894,1.09496965,3163.7,3163.6,2.21266]
[1720872213100,1.09496965,3164.1,3163.6,2.21266]
[1720872213300,1.09496965,3164.0,3163.6,2.21266]
[1720872213462,1.09496965,3163.9,3163.6,2.21266]
[1720872213665,1.09496965,3163.8,3163.6,2.21266]
[1720872213888,1.09496965,3163.7,3163.2,3.96435]
[1720872214095,2.3184,3163.8,3163.2,6.17725]
[1720872214260,1.09496965,3163.6,3163.2,6.17725]
[1720872214583,1.09496965,3163.5,3163.2,6.17725]
[1720872214799,1.09496965,3163.6,3163.2,6.17725]
[1720872215164,0.453086,3163.7,3163.2,6.17725]
[1720872215475,1.09510515,3163.6,3163.2,6.17725]
[1720872215691,1.09510515,3163.5,3163.2,2.2129]
[1720872215871,1.09511261,3163.4,3163.2,2.2129]
[1720872216070,0.453086,3163.7,3163.2,2.2129]
[1720872216277,1.09511579,3163.6,3163.2,2.2129]
[1720872216511,1.09511579,3163.5,3163.2,2.2129]
[1720872216869,1.09511579,3163.4,3163.2,2.2129]
[1720872217197,2.3184,3163.8,3163.2,2.2129]
[1720872217505,1.09506177,3163.7,3163.2,2.2129]
[1720872217689,1.09506177,3163.6,3163.2,2.2129]
[1720872217900,2.3184,3163.8,3163.2,2.2129]
[1720872218224,1.09506798,3163.7,3163.2,2.2129]
[1720872218561,1.09505126,3163.6,3163.2,4.42579]
[1720872218767,2.3184,3163.8,3163.2,4.42579]
[1720872219106,1.0950578,3163.7,3163.3,2.21284]
[1720872219410,1.0950578,3163.6,3163.3,2.21284]
[1720872219618,2.21235,3164.1,3163.3,2.21284]
[1720872219779,1.09502601,3164.0,3163.3,2.21284]
[1720872219983,1.14098439,3163.9,3163.3,2.21284]
[1720872220212,1.09502521,3163.8,3163.3,2.21284]
[1720872220522,1.09502521,3163.7,3163.3,2.21284]
[1720872220734,1.09502521,3164.0,3163.3,2.21284]
[1720872220876,1.09502521,3163.9,3163.3,2.21284]
[1720872221076,0.04595918,3163.9,3163.3,2.21284]
[1720872221320,1.09502521,3163.8,3163.4,2.2128]
[1720872221530,1.09502521,3164.0,3163.4,2.2128]
[1720872221823,0.04575479,3163.9,3163.4,2.2128]
[1720872222424,1.09503176,3163.8,3163.4,2.2128]
[1720872222595,1.14075886,3163.7,3163.4,2.2128]
[1720872222920,1.09503176,3163.6,3163.4,2.2128]
[1720872223221,0.0457271,3163.7,3163.5,2.4845]
[1720872223428,5.3184,3164.4,3163.5,2.4845]
[1720872223742,1.09498573,3164.3,3163.5,2.4845]
[1720872223910,1.09498573,3164.2,3163.5,4.69719]
[1720872224223,2.3184,3163.7,3163.1,2.21296]
[1720872224548,1.09498573,3163.6,3163.1,2.21296]
[1720872225622,1.09510504,3163.5,3163.1,4.42591]
[1720872225920,1.09510504,3163.4,3163.1,4.42591]
[1720872226123,2.3184,3163.7,3163.1,4.42591]
[1720872226293,1.09508657,3163.6,3163.1,4.42591]
[1720872226497,1.09508657,3163.5,3163.2,2.21294]
[1720872226693,1.09508657,3163.6,3163.2,2.21294]
[1720872226891,0.04568955,3163.4,3163.2,2.21294]
[1720872227117,2.3184,3163.7,3163.2,2.21294]
[1720872227325,0.0456757,3163.3,3163.2,1.93794]
[1720872227496,2.3184,3163.7,3163.2,1.93794]
[1720872227700,1.09509075,3163.6,3163.2,1.93794]
[1720872227898,1.09509075,3163.5,3163.2,1.93794]
[1720872228225,1.1407803,3163.4,3163.2,1.93794]
[1720872228442,1.09508959,3163.3,3163.2,1.93794]
[1720872228643,1.09511369,3163.3,3163.2,1.93794]
[1720872229005,1.09509593,3163.3,3163.2,1.93794]
[1720872229649,1.14077163,3163.3,3163.2,7.350469]
[1720872229859,4.53069,3164.2,3163.5,2.21273]
[1720872230151,1.14077944,3164.1,3163.5,2.21273]
[1720872230443,1.09501619,3164.0,3163.5,2.21273]
[1720872230640,1.14075175,3163.9,3163.5,2.21273]
[1720872230885,1.09501619,3163.8,3163.5,2.21273]
[1720872231220,0.04570787,3163.7,3163.5,2.21273]
[1720872231415,1.09501619,3163.6,3163.5,2.21273]
[1720872231760,1.14071642,3163.6,3163.5,2.21273]
[1720872232343,0.04570023,3163.6,3163.5,2.21273]
[1720872232732,1.09502369,3163.6,3163.5,2.21273]
[1720872232950,0.04570023,3163.6,3163.5,2.21273]
[1720872233265,1.09502369,3163.6,3163.5,2.21273]
[1720872233473,0.04570023,3163.6,3163.5,2.21273]
[1720872233641,1.14072392,3163.6,3163.5,2.21273]
[1720872235867,1.14067254,3163.6,3163.5,2.21273]
[1720872236224,0.04570023,3163.6,3163.5,2.21273]
[1720872236427,1.09498103,3164.0,3163.5,2.21273]
[1720872236671,1.14076195,3163.9,3163.5,2.21273]
[1720872236844,1.09498103,3163.8,3163.5,2.21273]
[1720872237174,0.04575323,3163.7,3163.5,2.21273]
[1720872237470,1.09498103,3163.6,3163.5,2.21273]
[1720872237641,0.04573938,3163.6,3163.5,2.21273]
[1720872237843,0.04573938,3163.6,3163.3,2.21285]
[1720872237844,1.09498103,3163.6,3163.3,2.21285]
[1720872238033,1.14070346,3163.5,3163.3,2.21285]
[1720872238231,1.09498103,3163.4,3163.3,2.21285]
[1720872238440,1.1406648,3163.4,3163.3,2.21285]
[1720872238868,1.14073513,3163.4,3163.3,2.21285]
[1720872239378,1.14075704,3163.4,3163.3,2.21285]
[1720872240079,1.14075704,3163.4,3163.2,2.21289]
[1720872240383,1.09507327,3163.3,3163.2,2.21289]
[1720872240587,1.09507327,3163.3,3163.0,5.21306]
[1720872240882,1.09507327,3163.3,3163.0,2.21306]
[1720872241086,2.3218,3163.5,3163.0,2.21306]
[1720872241243,1.09507327,3163.2,3163.0,2.21306]
[1720872241442,1.09507327,3163.4,3163.0,2.21306]
[1720872241639,1.09515507,3163.3,3163.0,2.21306]
[1720872241979,1.09515507,3163.2,3163.0,2.21306]
[1720872242277,1.09515507,3163.1,3163.0,2.21306]
[1720872244298,1.09515507,3163.1,3163.0,3.592516]
[1720872244592,1.09515507,3163.1,3163.0,6.592516]
[1720872244956,2.3218,3163.7,3163.1,2.213]
[1720872245158,1.09509433,3163.6,3163.1,2.213]
[1720872245487,0.04437003,3163.6,3163.1,2.213]
[1720872245689,1.09511541,3163.5,3163.1,2.213]
[1720872245852,1.09511541,3163.4,3163.1,2.213]
[1720872246191,1.13944389,3163.3,3163.1,2.213]
[1720872246400,1.13944389,3163.3,3163.1,2.955615]
[1720872246401,1.09511541,3163.2,3163.1,2.955615]
[1720872246556,1.09511541,3163.2,3163.1,7.572625]
[1720872248428,4.5341,3164.2,3163.4,2.21276]
[1720872248554,1.09498628,3164.1,3163.4,2.21276]
[1720872248757,1.09498628,3164.0,3163.5,2.21273]
[1720872248996,1.09498628,3163.9,3163.6,2.21266]
[1720872249292,1.09498628,3163.8,3163.6,2.21266]
[1720872249723,1.13932563,3163.7,3163.6,2.21266]
[1720872250192,1.09498628,3163.7,3163.6,2.21266]
[1720872251809,1.09496042,3163.7,3163.6,2.21266]
[1720872252974,1.13929977,3163.7,3163.6,2.21266]
[1720872253833,1.13929977,3163.7,3163.4,4.42552]
[1720872253989,1.09496042,3163.6,3163.5,2.21273]
[1720872254699,1.09496042,3164.1,3163.5,2.21273]
[1720872254883,0.56290304,3164.0,3163.5,2.21273]
[1720872255084,1.09496042,3163.9,3163.5,2.21273]
[1720872255285,1.09502704,3163.8,3163.5,2.21273]
[1720872255519,1.09502704,3163.7,3163.5,2.21273]
[1720872255728,1.09502704,3163.6,3163.5,4.42541]
[1720872258124,1.09502704,3163.6,3163.5,2.21268]
[1720872258489,2.3218,3164.2,3163.6,2.21264]
[1720872258823,1.54832823,3164.1,3163.6,2.21264]
[1720872259025,0.49781952,3164.1,3163.6,2.21264]
[1720872259231,1.09493013,3164.0,3163.6,2.21264]
[1720872259425,1.09493013,3163.9,3163.6,2.21264]
[1720872259610,1.09493013,3163.8,3163.6,2.21264]
[1720872259994,0.04436413,3163.7,3163.6,2.21264]
[1720872260214,1.13929426,3163.7,3163.6,2.21264]
[1720872260425,1.09493013,3163.7,3163.6,2.21264]
[1720872260623,0.04436413,3163.7,3163.6,2.21264]
[1720872260784,1.13929426,3163.7,3163.6,2.21264]
[1720872260984,1.09493013,3163.7,3163.6,2.21264]
[1720872261186,0.04440284,3163.7,3163.6,2.21264]
[1720872261593,1.09493013,3163.7,3163.6,2.21264]
[1720872261828,0.04440129,3163.7,3163.6,2.21264]
[1720872262029,1.13938339,3163.7,3163.6,2.21264]
[1720872262195,1.0949821,3163.7,3163.6,2.21264]
[1720872262396,1.13938339,3163.7,3163.6,2.21264]
[1720872263126,1.0949821,3163.7,3163.6,2.21264]
[1720872265410,1.09497738,3163.7,3163.6,2.21264]
[1720872268752,4.53408,3164.2,3163.6,2.21264]
[1720872268914,1.09492724,3164.1,3163.7,2.492]
[1720872269261,1.09492724,3164.0,3163.7,2.492]
[1720872269416,1.13932164,3163.9,3163.7,2.492]
[1720872269730,1.09492724,3163.8,3163.7,2.492]
[1720872270117,1.13930779,3163.8,3163.7,2.492]
[1720872271417,1.13930779,3163.8,3163.7,5.175054]
[1720872271767,1.09492724,3163.8,3163.7,5.175054]
[1720872272258,2.21197,3164.6,3163.9,2.2124]
[1720872272424,1.13934757,3164.5,3164.0,2.21238]
[1720872272623,0.33513176,3164.4,3164.0,2.21238]
[1720872273029,1.13932074,3164.3,3164.0,2.21238]
[1720872273230,1.09484797,3164.2,3163.8,2.21247]
[1720872273429,1.09484797,3164.1,3163.6,4.42524]
[1720872273816,0.04443123,3164.0,3163.6,2.21261]
[1720872274011,1.09484797,3163.9,3163.6,2.21261]
[1720872274216,1.09484797,3164.1,3163.6,2.21261]
[1720872274420,1.09484797,3164.0,3163.6,2.21261]
[1720872274653,1.09484797,3163.9,3163.6,2.21261]
[1720872274863,2.2619,3164.2,3163.6,2.21261]
[1720872274864,1.09484797,3164.1,3163.6,2.21261]
[1720872275059,2.2619,3164.2,3163.6,2.21261]
[1720872275060,1.09484797,3164.0,3163.6,2.21261]
[1720872275219,1.09484797,3164.1,3163.6,2.21261]
[1720872275413,0.04444207,3164.0,3163.6,2.21261]
[1720872275619,1.09489017,3163.9,3163.6,2.21261]
[1720872275859,1.13930455,3163.8,3163.6,4.42522]
[1720872276031,1.09489017,3163.7,3163.6,2.21261]
[1720872277530,1.09489017,3163.7,3163.6,7.448805]
[1720872278852,4.47401,3164.4,3163.8,2.21251]
[1720872279055,1.13936028,3164.3,3163.8,2.21251]
[1720872279377,1.09487667,3164.2,3163.8,2.21251]
[1720872279752,0.04445592,3164.1,3163.8,2.21251]
[1720872279941,1.09487667,3164.0,3163.8,2.21251]
[1720872280136,0.04445592,3164.1,3163.8,2.21251]
[1720872280371,0.04442822,3163.9,3163.8,2.21251]
[1720872280583,1.09487544,3163.9,3163.8,2.21251]
[1720872280747,0.04442822,3163.9,3163.8,2.21251]
[1720872281076,1.09487544,3164.2,3163.8,2.21251]
[1720872281294,1.13933136,3164.1,3163.8,2.21251]
[1720872281681,1.09487544,3164.0,3163.8,2.21251]
[1720872281881,0.04442822,3163.9,3163.8,2.21251]
[1720872282098,1.13930366,3163.9,3163.8,2.21251]
[1720872282568,1.13930749,3163.9,3163.8,2.21251]
[1720872285811,0.04442822,3163.9,3163.8,2.21251]
[1720872285958,1.13927349,3163.9,3163.8,2.21251]
[1720872286156,1.09484527,3163.9,3163.8,2.21251]
[1720872286398,1.13929853,3163.9,3163.8,2.21251]
[1720872289289,1.13929058,3163.9,3163.8,2.21251]
[1720872292696,1.13927996,3163.9,3163.8,2.21251]
[1720872295441,2.3201,3163.8,3163.2,3.96435]
[1720872295610,0.567188,3163.7,3163.2,3.96435]
[1720872295929,0.61166376,3163.7,3163.2,3.96435]
[1720872296131,1.09516653,3163.6,3163.2,3.96435]
[1720872296336,1.095168,3163.6,3163.2,3.96435]
[1720872296536,1.13961805,3163.5,3163.2,3.96435]
[1720872296696,1.09516829,3163.4,3163.2,3.96435]
[1720872296896,1.13959035,3163.3,3163.2,3.96435]
[1720872297335,1.13959035,3163.3,3163.1,2.21301]
[1720872297534,1.09516829,3163.2,3163.1,2.21301]
[1720872299052,1.09516829,3163.2,3162.9,2.21314]
[1720872299053,2.779778,3163.7,3162.9,2.21314]
[1720872299216,2.779778,3163.7,3162.8,5.21322]
[1720872299217,1.09519615,3163.2,3162.8,5.21322]
[1720872299418,1.09519615,3163.1,3162.8,5.21322]
[1720872299620,1.09519615,3163.3,3162.8,5.21322]
[1720872301650,1.09519615,3163.2,3162.9,2.21315]
[1720872301851,2.21274,3163.5,3162.9,2.21315]
[1720872302019,1.09516327,3163.1,3162.9,2.21315]
[1720872302351,2.21274,3163.5,3162.9,2.21315]
[1720872302559,1.09515915,3163.4,3162.9,2.21315]
[1720872302860,1.09515915,3163.3,3162.9,2.21315]
[1720872303021,1.09515915,3163.4,3162.9,2.21315]
[1720872303370,1.09515915,3163.4,3163.1,2.21296]
[1720872303675,1.09515915,3163.3,3163.1,2.21296]
[1720872304034,1.09515915,3163.2,3163.1,2.21296]
[1720872305257,4.53271,3163.7,3163.1,2.21296]
[1720872305468,1.09514484,3163.2,3163.1,2.21296]
[1720872305620,0.04435209,3163.6,3163.1,2.21296]
[1720872305822,2.3201,3163.4,3163.1,2.21296]
[1720872306039,1.09517437,3163.3,3162.8,3.0]
[1720872308461,1.09523611,3163.2,3162.8,3.0]
[1720872308667,1.0952364,3163.1,3162.8,3.0]
[1720872308874,1.0952364,3163.0,3162.8,3.0]
[1720872309058,2.3201,3162.9,3162.7,3.96435]
[1720872309538,1.09531252,3162.8,3162.7,3.96435]
[1720872309927,1.09531252,3162.8,3162.4,19.65]
[1720872310273,4.53312,3163.1,3162.5,3.0]
[1720872310435,1.09532531,3163.0,3162.5,3.0]
[1720872310770,1.09532531,3162.9,3162.5,3.0]
[1720872311170,0.04407475,3162.8,3162.5,3.0]
[1720872311369,1.09532531,3162.7,3162.5,3.0]
[1720872311539,2.2131,3163.0,3162.5,3.0]
[1720872311744,1.09535348,3162.9,3162.5,3.0]
[1720872312061,1.13942778,3162.8,3162.5,3.0]
[1720872312470,4.53312,3163.1,3162.5,3.0]
[1720872312660,1.09532729,3163.0,3162.5,3.0]
[1720872312846,1.09532729,3162.9,3162.5,3.0]
[1720872313037,1.09532729,3162.8,3162.5,3.0]
[1720872313663,1.09532729,3163.0,3162.5,3.0]
[1720872313848,1.09534735,3162.9,3162.5,3.0]
[1720872314051,1.09534735,3162.8,3162.4,5.21348]
[1720872314249,0.0440886,3162.9,3162.4,5.21348]
[1720872314435,1.09534651,3162.8,3162.4,5.21348]
[1720872314629,0.04407475,3162.8,3162.4,5.21348]
[1720872315078,4.53312,3163.1,3162.4,5.21348]
[1720872315283,0.04406089,3162.7,3162.4,5.21348]
[1720872315440,4.53312,3163.1,3162.4,5.21348]
[1720872315642,1.09535179,3163.0,3162.4,5.21348]
[1720872315935,2.4912,3162.8,3162.1,3.96435]
[1720872316163,2.21335,3162.7,3162.1,3.96435]
[1720872316338,0.470455,3162.6,3162.1,3.96435]
[1720872316537,1.09535217,3162.5,3162.1,3.96435]
[1720872318363,1.09551577,3162.4,3162.1,3.96435]
[1720872318737,0.470455,3162.6,3162.1,3.96435]
[1720872318988,1.09551954,3162.5,3162.1,3.96435]
[1720872319278,1.09551954,3162.4,3162.1,3.96435]
[1720872319473,2.683825,3162.6,3162.1,3.96435]
[1720872319678,1.09550748,3162.5,3162.1,3.96435]
[1720872319878,1.09550748,3162.4,3162.0,2.21378]
[1720872320043,1.09550748,3162.5,3162.0,2.21378]
[1720872322280,1.09553957,3162.4,3162.0,2.21378]
[1720872322456,1.09553957,3162.3,3162.0,2.21378]
[1720872322653,1.09553957,3162.5,3162.0,2.21378]
[1720872322842,1.09554123,3162.4,3162.0,2.21378]
[1720872323041,1.09554123,3162.3,3162.0,2.21378]
[1720872323263,2.21337,3162.6,3162.0,2.21378]
[1720872323442,1.53820433,3162.5,3162.0,2.21378]
[1720872323655,1.09553233,3162.4,3162.0,2.21378]
[1720872323858,2.21337,3162.6,3162.0,2.21378]
[1720872324056,1.09550423,3162.5,3161.8,2.21387]
[1720872324257,1.09550423,3162.4,3161.8,2.21387]
[1720872324646,1.09550423,3162.5,3161.8,2.21387]
[1720872324977,1.64772665,3162.5,3161.8,2.21387]
[1720872325190,1.09550423,3162.4,3161.8,2.21387]
[1720872325502,2.76566242,3162.5,3161.9,2.21384]
[1720872325648,1.09555762,3162.4,3161.9,2.21384]
[1720872325849,1.09555762,3162.3,3161.9,2.21384]
[1720872326046,1.09555762,3162.2,3161.9,2.21384]
[1720872326293,2.21344,3162.5,3161.9,2.21384]
[1720872326486,2.21344,3162.5,3161.8,2.21387]